Cogmind - Beta 10.2 @@@ ROGUE MODE // 2021.01.11 @ 09:10:01 Player: Demise Result: Destroyed by Light Fission Core chain reaction Performance ------------- Evolutions (1) 500 Regions Visited (5) 1000 Robots Destroyed (70) 350 Value Destroyed (1429) 1429 Prototype IDs (43) 860 Alien Tech Used (0) 0 Bonus (300) 300 TOTAL SCORE: 4439 Bonus ------- Aligned with FarCom 300 Cogmind --------- Core Integrity 0/400 Matter 300/300 Energy 304/310 System Corruption 5% Temperature Cool (14) Movement Walking (120) Location -9/Exiles Parts ------- > --- POWER (1) -------- Reinforced Fission Core > --- PROPULSION (2) --- Advanced Myomer Leg Advanced Myomer Leg > --- UTILITY (4) ------ High-capacity Storage Unit Salvage Targeting Computer Improved Targeting Computer Core Shielding > --- WEAPON (2) ------- Heavy EM Pulse Gun Plasma Cutter > --- INVENTORY (12) --- Light Treads Assault Rifle Heavy Assault Rifle Heavy Assault Rifle Improved Assault Rifle Improved Assault Rifle Mini Grenade Launcher Longsword +1 Peak State ------------ > --- POWER ------------ Reinforced Fission Core > --- PROPULSION ------- Advanced Myomer Leg Advanced Myomer Leg > --- UTILITY ---------- High-capacity Storage Unit Salvage Targeting Computer Improved Targeting Computer Core Shielding > --- WEAPON ----------- Improved Assault Rifle Improved Assault Rifle > --- INVENTORY -------- Light Treads Gravity Neutralizing Apparatus 8R-AWN's Armor/EX Assault Rifle Heavy Assault Rifle Heavy Assault Rifle Longsword +1 [Rating: 38] Favorites ----------- Power Ion Engine Engine Ion Engine Power Core Reinforced Fission Core Propulsion Light Treads Treads Light Treads Leg Advanced Myomer Leg Utility High-capacity Storage Unit Storage High-capacity Storage Unit Processor Transport Network Coupler Protection Core Shielding Weapon Heavy Assault Rifle Energy Gun Heavy EM Pulse Gun Energy Cannon Firepult Ballistic Gun Heavy Assault Rifle Launcher Mini Grenade Launcher Special Weapon Mining Laser Special Melee Weapon Datajack Build | -11 -10 -10 -9 -9 -9 ------- Run | Scr Mat Min Mat Min Exi Slots Evolved 2 | . . . 2 . . Power . | . . . . . . Propulsion . | . . . . . . Utility 2 | . . . 2 . . Weapon . | . . . . . . Parts Attached 106 | 6 19 7 37 13 24 Power 9 | 1 2 . 3 1 2 Engine 8 | 1 2 . 3 1 1 Core 1 | . . . . . 1 Reactor . | . . . . . . Propulsion 20 | 2 3 . 9 2 4 Treads 18 | 2 3 . 9 2 2 Leg 2 | . . . . . 2 Wheel . | . . . . . . Hover . | . . . . . . Flight . | . . . . . . Utility 25 | 1 5 . 9 2 8 Device . | . . . . . . Storage 10 | 1 3 . 3 . 3 Processor 5 | . 1 . 2 . 2 Hackware . | . . . . . . Protection 10 | . 1 . 4 2 3 Artifact . | . . . . . . Weapon 52 | 2 9 7 16 8 10 Energy Gun 3 | . . . 2 . 1 Energy Cannon 2 | . . . 1 . 1 Ballistic Gun 33 | 2 5 4 12 6 4 Ballistic Cannon . | . . . . . . Launcher 7 | . . 3 . 2 2 Special Weapon 6 | . 4 . 1 . 1 Impact Weapon . | . . . . . . Slashing Weapon . | . . . . . . Piercing Weapon . | . . . . . . Special Melee Weapon 1 | . . . . . 1 Unidentified Prototypes 5 | . . . 5 . . Parts Lost 14 | . . 1 1 4 8 Power 2 | . . . . . 2 Propulsion 3 | . . . . . 3 Utility 4 | . . . . 2 2 Weapon 5 | . . 1 1 2 1 Highest Loss Streak 4 | . . 1 1 3 4 Average Slot Usage (%) 97 | . 94 100 99 99 88 Engine 11 | . 14 14 11 10 7 Treads 23 | . 27 28 22 22 15 Storage 25 | . 17 28 24 33 28 Processor 4 | . 2 . 7 . 9 Protection 7 | . 3 . 12 11 5 Ballistic Gun 20 | . 25 26 21 21 5 Naked Turns . | . . . . . . Heaviest Build 136 | 11 71 75 113 113 136 Greatest Support 60 | 40 40 40 40 40 60 Greatest Overweight (x) 3 | 3 1 1 2 2 3 Average Overweight (x) 1 | . . 1 1 2 1 Largest Inventory Capacity 36 | 6 20 20 28 28 36 Average Capacity 20 | 5 12 20 21 28 24 Most Carried 36 | 4 19 20 28 28 36 Average Carried 19 | 2 10 19 20 27 21 Final Capacity 28 | 6 20 20 28 28 12 Final Carried 28 | 4 19 20 28 28 8 Class Distribution -------------------- 77% | Hauler-Mutant 22% | Mutant Dominant Class ---------------- Mutant | -10/Materials Hauler-Mutant | -10/Mines Hauler-Mutant | -9/Materials Hauler-Mutant | -9/Mines Hauler-Mutant | -9/Exiles Resources | -11 -10 -10 -9 -9 -9 ----------- Run | Scr Mat Min Mat Min Exi Matter Collected 3332 | 337 241 554 922 425 853 Remotely . | . . . . . . Salvage Created 2804 | 166 380 513 1137 276 332 Parts 214 | 14 32 34 88 19 27 Haulers Intercepted 8 | . 2 . 6 . . Recyclers Shooed 5 | . . 2 2 1 . Parts Field Recycled . | . . . . . . Retrieved Matter . | . . . . . . Parts Self-Destructed . | . . . . . . Prevented . | . . . . . . Kills | -11 -10 -10 -9 -9 -9 ------- Run | Scr Mat Min Mat Min Exi Combat Hostiles Destroyed 52 | . 7 10 15 16 4 Guns 42 | . 7 8 15 10 2 Cannons 1 | . . . . . 1 AOE 9 | . . 2 . 6 1 Classes Destroyed 12 | 3 5 . 2 1 1 Worker 4 | 2 . . . 2 . Builder 2 | . 1 . 1 . . Tunneler 4 | 3 . 1 . . . Hauler 8 | . 2 . 6 . . Recycler 5 | 1 . 4 . . . Operator 1 | . . . 1 . . Turret 1 | . . . . . 1 Watcher 7 | . 2 . 5 . . Swarmer 15 | . 3 8 . 4 . Grunt 15 | . 4 2 9 . . Sentry 8 | . . . 6 2 . Assembled 13 | . . . . 10 3 Best Kill Streak 9 | 3 2 3 3 9 1 Combat Bots Only 9 | . 2 3 3 9 1 Max Kills in Single Turn 2 | 1 1 2 1 2 1 Gunslinging . | . . . . . . Exploded 2 | . . 2 . 2 1 Melee . | . . . . . . Uniques/NPCs Destroyed 1 | . . . . . 1 8R-AWN (-9/Exiles) Combat | -11 -10 -10 -9 -9 -9 -------- Run | Scr Mat Min Mat Min Exi Damage Taken 3641 | . 343 424 607 863 1404 Core 526 | . 41 73 63 49 300 Absorbed by Shields . | . . . . . . Core Remaining (%) 77 | 100 . 54 . . . Volleys Fired 379 | 20 73 51 91 54 90 Largest 2 | 2 2 2 2 2 2 Hottest 100 | 40 100 40 100 53 53 Shots Fired 644 | 40 121 94 181 66 142 Gun 567 | 40 96 86 179 58 108 Cannon . | . . . . . . Launcher 31 | . . 8 . 8 15 Special 46 | . 25 . 2 . 19 Kinetic 566 | 40 96 86 179 58 107 Thermal 46 | . 25 . 2 . 19 Explosive 31 | . . 8 . 8 15 Electromagnetic 1 | . . . . . 1 Robot Hit Streak 23 | 8 14 14 17 10 23 Robot Miss Streak 5 | 4 3 5 4 4 1 Penetration Max . | . . . . . . Secondary Targets 3 | . 1 . 2 . . Max Gunslinging Chain 1 | . 1 . 1 . . Shots Hit Robots 427 | 26 69 59 122 38 113 Core Hits 168 | 12 28 27 40 30 31 Critical Hits 4 | . 1 . . . 3 Critical Kills 1 | . . . . . 1 Critical Parts Destroyed 3 | . 1 . . . 2 Melee Attacks 4 | . . . . . 4 Impact . | . . . . . . Slashing . | . . . . . . Piercing . | . . . . . . Sneak Attacks 4 | . . . . . 4 Combat Hostiles . | . . . . . . Follow-up Attacks . | . . . . . . Damage Inflicted 6086 | 230 534 864 1650 853 1955 Guns 4951 | 230 510 647 1643 571 1350 Cannons . | . . . . . . Explosions 888 | . . 217 . 282 389 Melee . | . . . . . . Ramming 7 | . . . 7 . . Kinetic 4937 | 230 510 647 1643 571 1336 Thermal 240 | . 24 . . . 216 Explosive 888 | . . 217 . 282 389 Electromagnetic 14 | . . . . . 14 Impact . | . . . . . . Slashing . | . . . . . . Piercing . | . . . . . . Highest Corruption 5 | . . . 5 5 5 Average Corruption 4 | . . . 3 5 5 Corruption Purged . | . . . . . . Effects 115 | . . . 30 38 47 Message Errors 26 | . . . 9 6 11 Matter Fused 26 | . . . 7 8 11 Heat Flow Errors 15 | . . . 4 7 4 Energy Discharges 15 | . . . 4 7 4 Data Loss (minor) 12 | . . . 3 4 5 Data Loss (major) 4 | . . . 1 2 1 Misfires 3 | . . . 1 1 1 Targeting Errors 11 | . . . 1 2 8 Weapon Failures 3 | . . . . 1 2 Overload Shots . | . . . . . . Overflow Damage 17 | . . . . 6 11 Projectiles . | . . . . . . Explosions 17 | . . . . 6 11 Melee . | . . . . . . Knockbacks . | . . . . . . Impact . | . . . . . . Kinetic . | . . . . . . Secondary . | . . . . . . Self-Inflicted Damage 6 | . . 6 . . . Shots 1 | . . 1 . . . Rammed 1 | . . . 1 . . Targets Rammed 1 | . . . 1 . . Kicked . | . . . . . . Crushed . | . . . . . . Highest Temperature 281 | . 62 18 246 281 228 Average Temperature 66 | . 19 10 55 130 86 Received Heat Transfer 624 | . 171 93 243 117 . Siege Activations . | . . . . . . Robots Corrupted . | . . . . . . Combat Hostiles . | . . . . . . Parts Fried . | . . . . . . Impact Corruptions . | . . . . . . Robots Melted . | . . . . . . Combat Hostiles . | . . . . . . Parts Melted 1 | . 1 . . . . Heat Transferred 716 | . 50 . . . 666 Parts Sabotaged . | . . . . . . Parts Stolen . | . . . . . . Parts Stripped . | . . . . . . Power Chain Reactions . | . . . . . . Missiles Intercepted . | . . . . . . Alert | -11 -10 -10 -9 -9 -9 ------- Run | Scr Mat Min Mat Min Exi Peak Influence 230 | 30 156 215 199 230 . Initial 76 | . 19 . 76 70 . Average 60 | 13 38 52 77 59 . Maximum Alert Level 1 | . . 1 . 1 . Low Security (%) 97 | 100 100 98 100 86 . Level 1 2 | . . 1 . 13 . Level 2 . | . . . . . . Level 3 . | . . . . . . Level 4 . | . . . . . . Level 5 . | . . . . . . High Security . | . . . . . . Max Security . | . . . . . . Squads Dispatched 5 | . 1 . 4 . . Investigation 3 | . . . 3 . . Extermination . | . . . . . . Reinforcement 2 | . 1 . 1 . . Assault . | . . . . . . Garrison . | . . . . . . Intercept . | . . . . . . Construction Impeded . | . . . . . . Haulers Reinforced . | . . . . . . Stealth | -11 -10 -10 -9 -9 -9 --------- Run | Scr Mat Min Mat Min Exi Distress Signals 4 | . 2 . 2 . . Communications Jammed . | . . . . . . Distress Signals . | . . . . . . Times Spotted 102 | . 24 11 32 18 17 Peak Tracking Total 9 | . 4 3 3 4 9 Tactical Retreats 8 | . 2 . 1 2 3 Traps | -11 -10 -10 -9 -9 -9 ------- Run | Scr Mat Min Mat Min Exi Traps Triggered 2 | . . . 2 . . Indirectly . | . . . . . . Trap Hack Attempts . | . . . . . . Triggered . | . . . . . . Disarmed . | . . . . . . Reprogrammed . | . . . . . . Reused . | . . . . . . Traps Extracted . | . . . . . . Installed . | . . . . . . Triggered . | . . . . . . Exploded 2 | . . . . . 2 Machines | -11 -10 -10 -9 -9 -9 ---------- Run | Scr Mat Min Mat Min Exi Machines Disabled 19 | . 1 9 1 4 4 Max in Single Turn 4 | . 1 3 1 4 2 Machines Sabotaged . | . . . . . . Garrisons Compromised . | . . . . . . Overloaded Fab Kills . | . . . . . . Fab Network Shutdowns . | . . . . . . Hacking | -11 -10 -10 -9 -9 -9 --------- Run | Scr Mat Min Mat Min Exi Machines Accessed 29 | . 10 1 16 . 2 Terminals 20 | . 7 1 12 . . Fabricators . | . . . . . . Repair Stations 3 | . 1 . 2 . . Recycling Units 4 | . 2 . 2 . . Scanalyzers . | . . . . . . Garrison Access . | . . . . . . Total Hacks 93 | . 34 3 54 . 2 Successful 56 | . 22 2 30 . 2 Failed 36 | . 11 1 24 . . Catastrophic 4 | . 2 . 2 . . Database Lockouts 1 | . 1 . . . . Manual 64 | . 23 3 37 . 1 Terminals 65 | . 23 3 39 . . Fabricators . | . . . . . . Repair Stations 16 | . 7 . 9 . . Recycling Units 10 | . 4 . 6 . . Scanalyzers . | . . . . . . Garrison Access . | . . . . . . Terminal Hacks 23 | . 6 2 13 . 2 Record 1 | . . . . . 1 Part Schematic 4 | . . . 4 . . Robot Analysis 7 | . 1 2 4 . . Prototype ID Bank 1 | . . . 1 . . Branch Access Points 1 | . . . 1 . . Terminal Index 2 | . 1 . 1 . . Unreport Threat 1 | . 1 . . . . Locate Traps 1 | . 1 . . . . Hauler Manifests 2 | . 1 . 1 . . Zone Layout 2 | . 1 . 1 . . EX-Prototype ID Bank 1 | . . . . . 1 Fabricator Hacks . | . . . . . . Repair Station Hacks 13 | . 6 . 7 . . Scan Component 7 | . 3 . 4 . . Repair 6 | . 3 . 3 . . Recycling Unit Hacks 3 | . 1 . 2 . . Retrieve Components 3 | . 1 . 2 . . Scanalyzer . | . . . . . . Garrison Access Hacks . | . . . . . . Unauthorized Hacks 17 | . 9 . 8 . . Terminals 13 | . 7 . 6 . . Assimilate 3 | . 3 . . . . Botnet 9 | . 3 . 6 . . Operators 1 | . 1 . . . . Fabricators . | . . . . . . Repair Stations . | . . . . . . Recycling Units 4 | . 2 . 2 . . Reject 3 | . 1 . 2 . . Mask 1 | . 1 . . . . Scanalyzers . | . . . . . . Garrison Access . | . . . . . . Data Cores Recovered . | . . . . . . Used . | . . . . . . Hacking Detections 22 | . 5 1 16 . . Full Trace Events 5 | . 1 1 3 . . Feedback Events . | . . . . . . Feedback Blocked . | . . . . . . Robot Schematics Acquired . | . . . . . . Robots Built . | . . . . . . Matter . | . . . . . . Time . | . . . . . . Total Robot Build Rating . | . . . . . . Part Schematics Acquired 4 | . . . 4 . . Parts Built . | . . . . . . Matter . | . . . . . . Time . | . . . . . . Total Part Build Rating . | . . . . . . Parts Repaired 6 | . 3 . 3 . . Time 133 | . 78 . 55 . . Parts Recycled . | . . . . . . Recycled Matter . | . . . . . . Retrieved Matter . | . . . . . . Retrieved Components 29 | . 10 . 19 . . Parts Scanalyzed . | . . . . . . Part Schematics Acquired . | . . . . . . Parts Damaged . | . . . . . . Bothacking | -11 -10 -10 -9 -9 -9 ------------ Run | Scr Mat Min Mat Min Exi Used RIF Installer . | . . . . . . Robots Hacked 4 | . . . . . 4 Non-combat 3 | . . . . . 3 Combat 1 | . . . . . 1 Robot Hacks Applied 4 | . . . . . 4 parse_system 4 | . . . . . 4 Relay Couplers Released . | . . . . . . Robots Rewired . | . . . . . . Allies Hacked . | . . . . . . Hacks Repelled . | . . . . . . Allies | -11 -10 -10 -9 -9 -9 -------- Run | Scr Mat Min Mat Min Exi Total Allies 2 | . 2 . . . . Largest Group 2 | . 2 . . . . Highest-Rated Group 20 | . 20 . . . . Highest-Rated Ally 10 | . 10 . . . . Total Orders . | . . . . . . Ally Attacks . | . . . . . . Total Damage . | . . . . . . Kills . | . . . . . . Allies Corrupted . | . . . . . . Allies Melted . | . . . . . . Intel | -11 -10 -10 -9 -9 -9 ------- Run | Scr Mat Min Mat Min Exi Robot Analysis Total 7 | . 1 2 4 . . Derelict Logs Recovered 2 | . . 1 . 1 . Drone Launches . | . . . . . . Drone Recoveries . | . . . . . . Exploration | -11 -10 -10 -9 -9 -9 ------------- Run | Scr Mat Min Mat Min Exi Turns Passed 10233 | 157 1971 1438 3722 1409 1536 Spaces Moved 4750 | 58 961 709 1724 632 666 Core 12 | 12 . . . . . Treads 4490 | 46 961 709 1724 632 418 Legs 248 | . . . . . 248 Wheels . | . . . . . . Hover . | . . . . . . Flight . | . . . . . . Fastest Speed 50 | 50 160 180 180 200 120 Average Speed 181 | 158 164 180 187 200 177 Slowest Speed 220 | 200 180 180 200 200 220 Overloaded Moves . | . . . . . . Propulsion Burnouts . | . . . . . . Robots Hopped . | . . . . . . Cave-ins Triggered . | . . . . . . Exploration Rate (%) 75 | 4 96 98 97 89 70 Regions Visited 5 Branch Regions 3 Pre-discovered Areas 3 | . . 1 . 1 1 Known Exits Taken 4 | . 1 1 1 1 . Unknown Exits Taken 1 | 1 . . . . . Scrap Searched 2 | . . 1 . 1 . Spaces Dug 8 | . 6 . 2 . . Terrain Destroyed 156 | . 9 67 2 47 31 Melee . | . . . . . . Projectile 11 | . 9 . 2 . . AOE 145 | . . 67 . 47 31 Terrain Rammed . | . . . . . . Walls Destroyed . | . . . . . . Machines Disabled . | . . . . . . Actions | -11 -10 -10 -9 -9 -9 --------- Run | Scr Mat Min Mat Min Exi Total 5715 | 88 1192 786 2063 712 874 Wait 298 | . 116 10 134 4 34 Move 4745 | 57 960 708 1723 631 666 Hop . | . . . . . . Pick Up 78 | 5 16 6 32 5 14 Fast Attach 30 | 5 6 . 11 1 7 Attach 25 | 1 . 1 6 4 13 Detach 11 | . 2 . 2 . 7 Swap 51 | . 13 6 20 8 4 Drop 93 | . 6 4 43 5 35 Fire 379 | 20 73 51 91 54 90 Melee 4 | . . . . . 4 Ram . | . . . . . . Kick . | . . . . . . Crush 1 | . . . 1 . . Escape Stasis . | . . . . . . Rewire . | . . . . . . Trap . | . . . . . . Miscellaneous . | . . . . . . Route ------- -11/Scrapyard -10/Materials (discovered 4 exits: *Mat x3 / *Min) -10/Mines (discovered 2 exits: *Mat x2) -9/Materials (discovered 5 exits: *Mat x3 / *Min x2) -9/Mines (discovered 2 exits: *Mat / *Exi) -9/Exiles (discovered 1 exit: [*Min]) History --------- Turn | Location | Event 19 | -11/Scrapyard | Discovered new exit (range 16) 158 | -11/Scrapyard | Entered Materials 203 | -10/Materials | Discovered new exit (range 15) 300 | -10/Materials | Build established: Mutant 1085 | -10/Materials | Repaired Lgt. Assault Rifle 1113 | -10/Materials | Repaired Lgt. Treads 1140 | -10/Materials | Repaired Lgt. Treads 1246 | -10/Materials | Discovered new exit (range 3) 1281 | -10/Materials | Identified exit to Materials 1364 | -10/Materials | Identified exit to Mines 1647 | -10/Materials | Discovered exit to Materials (range 15) 1853 | -10/Materials | Central database locked down 1887 | -10/Materials | Discovered exit to Materials (range 4) 1968 | -10/Materials | Build established: Hauler-Mutant 2129 | -10/Materials | Entered Mines 2129 | -10/Mines | Discovered exit to Materials (range 12) 2210 | -10/Mines | Learned location of Zion (-7) 2308 | -10/Mines | Received a Rocket Launcher from a helpful Derelict 3007 | -10/Mines | Discovered exit to Materials (range 6) 3567 | -10/Mines | Entered Materials 3567 | -9/Materials | Evolved 2 slots: Utility x2 3785 | -9/Materials | Repaired Lgt. Treads 3989 | -9/Materials | Discovered new exit (range 6) 4246 | -9/Materials | Discovered new exit (range 5) 4430 | -9/Materials | Repaired Hvy. Assault Rifle 4444 | -9/Materials | Repaired Hcp. Matter Pod 4603 | -9/Materials | Identified exit to Mines 4664 | -9/Materials | Identified exit to Materials 5680 | -9/Materials | Discovered exit to Materials (range 10) 6868 | -9/Materials | Discovered exit to Materials (range 3) 7289 | -9/Materials | Entered Mines 7290 | -9/Mines | Learned location of Storage (-8) 7555 | -9/Mines | Assembled infested the area 7801 | -9/Mines | Discovered exit to Materials (range 9) 7808 | -9/Mines | Destroyed 9 combat bots 8104 | -9/Mines | Identified exit to Exiles 8149 | -9/Mines | Lost 3 parts (1u2w) 8688 | -9/Mines | Deemed a non-threat by the Exiles lab entrance 8698 | -9/Mines | Entered Exiles 8770 | -9/Exiles | Met 8R-AWN 8805 | -9/Exiles | Met EX-HEX 8944 | -9/Exiles | Met EX-DEC 9047 | -9/Exiles | Met EX-BIN 9080 | -9/Exiles | Aligned with FarCom system 9082 | -9/Exiles | Given EX-Vault access code 9135 | -9/Exiles | Opened EX-Vault 9150 | -9/Exiles | Found Longsword +1 9159 | -9/Exiles | Found Firepult 9204 | -9/Exiles | Warned to stay clear of 0b10 Research branches 9361 | -9/Exiles | Discovered new exit (range 11) 9578 | -9/Exiles | Attacked by the Exiles 9749 | -9/Exiles | Core integrity fell below 50% 9762 | -9/Exiles | Lost 4 parts (1p1n1u1w) 9804 | -9/Exiles | Core integrity fell below 20% 9813 | -9/Exiles | Destroyed 8R-AWN 9821 | -9/Exiles | Lost 4 parts (1p2n1u) 9842 | -9/Exiles | Found 8R-AWN's Armor/EX 9933 | -9/Exiles | Build established: Mutant 10234 | -9/Exiles | Destroyed by Light Fission Core chain reaction Last Messages --------------- 10103_ Destroyed Asb. Hover Unit. 10107_ T2QX>YP, Y%9GFISPJMR|| 8486HQJKHHW 10111_ as-57829 destroyed. 10115_ Acquired 20 matter. 10125_ System corrupted: Matter fused (-6). 10156_ A-02 Transporter suffers critical hit. 10156_ Destroyed Lgt. Treads. 10158_ System corrupted: Heat flow error (+145). 10171_ System corrupted: Plasma Cutter targeting data glitched. 10180_ FS DN51BTI&XJK AZRW|7TUSTW# 10180_ A-02 Transporter destroyed. 10186_ A-02 Transporter suffers critical hit. 10186_ A-02 Transporter destroyed. 10189_ A-02 Transporter suffers critical hit. 10189_ Destroyed Lgt. Treads. 10195_ System corrupted: Plasma Cutter targeting data glitched. 10201_ A-02 Transporter destroyed. 10206_ Acquired 60 matter. 10208_ Acquired 50 matter. 10234_ Rigged Lgt. Fission Core explodes. Map ----- +----------------------------------------------------+ | ??????????????????????????????????????#""X" | | ??????????????????????????????????????#" | | ??????????????????????????????????????#" ## | | #?????????????????????????????????????#""""""?# | | #??????????????????????????????????????#"###??# | | #?????????????????????????????????????????????# | | ??????????????????????????????????????????????# | | #????????????????????????????????????????????## | | #????????????#######?????????????????????????#" | | #######??????#!!! "#?????????????????????????#" | | #""##?????# "#?????????????????????????#" | | #?????# "#?????????????????????????#" | | ##???## ""#????????????##???????????#" | | #####" ""#???????????? """????????#" | | ##" ""#????????????" """#???????## | | #"" #??????????????" ?????????# | | "## ! #?????????????"" ?????????#" | | ###### ! ####??????????"" "#????????#" | | ?????### !! ##?######?? ""?????????#" | | #######" ![ #### #???" "?????????##" | | !!"""""]! ![ # ## #???# #????????##"" | | ! ! ![= ### # ## #?### ###?######"" | | ! ! ! [ #?## ###X# #"###""""""" | | ! [[ "#??# """""" " "" | | !"""" #"##??#"# " """ " | | #######"# #???#### @ " " | | ??????# #??????### | | ??????# #????????# | | ??????### #????????# | | ????????# #????????## # | | ????????# #?????????##### | | ????????# #?????????????#""" """""" | | ????????# #????????????##" ######" | | ????????? ?????????????#"" ""##?????# | | ????????? ????????????##"" """##??????? | | ????????? ????????????#"" """##???????? | | ????????? ????????????#"" ""#????????? | | ????????? ????????????#"" ########??# | | ????????? ????????????#""" ##%=!#### | | ??????????????????????#"" *!!%=""" | | ??????????????????????##"" !=!!!= | | ???????????????????????#""" ! * | | ???????????????????????## ! | | ????????????????????????#" " | | ????????????????????????#"""" ""## | | ????????????????????????#"" ""#### | | ????????????????????????#" """"##??# | | ?????????????????????????""" """#??## | | ?????????????????????????# ""##??#! | | ?????????????????????????#"" """##???#" | +----------------------------------------------------+ Best States ------------- Heat Dissipation 28 Energy Generation 19 Energy Capacity 310 Matter Stores 300 Matter Capacity 300 Sight Range 16 Terrain Scan Density 10 Armor Coverage 150 Core Shielding 20 Evasion (%) 40 Targeting Accuracy 6 Recoil Reduction 2 Salvage Targeting 1 Item Schematics ----------------- Hcp. Storage Unit | -9/Materials | Hacked Plasma Cutter | -9/Materials | Hacked Lrg. Storage Unit | -9/Materials | Hacked Med. Storage Unit | -9/Materials | Hacked Robot Schematics ------------------ None Fabricated ------------ Nothing Alien Tech Used ----------------- None Achievements -------------- None Challenges ------------ None Game ------ Seed ReflectiveQuantumTendrils Manual? 0 Play Time 01:03:11 Cumulative 193.4 hours Start 2021.01.11 @ 08:06:55 End 2021.01.11 @ 09:10:01 Sessions 1 Manual Loads 0 Difficulty Rogue Special Mode None Game No. 180 Rogue 180 Adventurer 0 Explorer 0 Win Type - Total 0 Types 0/0/0/0/0/0/0/0/0 Lore% 59 Gallery% 68 Achievement% 54 Wizard Run 0 Options --------- ASCII 0 Keyboard 1 Movement Numpad Keybinds 0 Fullscreen 1 Font 12/Terminus Map View 83x54 Tactical HUD 1 Map Filters NONE Filters NONE Steam 1 RUN: 9bbe44f8-020a-460c-bb62-432c65457cd3